[Event "Titled Tuesday Blitz May 30 Late 2023"]
[White "Tristan, Leonardo"]
[Black "K2JW"]
[WhiteFideId "113816"]
[WhiteElo "2461"]
[BlackElo "2363"]
[Result "1-0"]
[Round "02"]
[TimeControl "180+2"]
[Date "2023.05.31"]
[WhiteClock "0:01:42"]
[BlackClock "0:00:16"]

1. d4 {[%clk 0:03:00]}  d5 {[%clk 0:02:59]} 2. Nf3 {[%clk 0:03:01]}  Nf6 {[%clk 0:02:59]} 3. Bf4 {[%clk 0:03:01]}  c5 {[%clk 0:02:55]} 4. e3 {[%clk 0:03:01]}  Nc6 {[%clk 0:02:46]} 5. Nbd2 {[%clk 0:03:01]}  cxd4 {[%clk 0:02:45]} 6. exd4 {[%clk 0:03:01]}  Bf5 {[%clk 0:02:46]} 7. Bb5 {[%clk 0:03:00]}  e6 {[%clk 0:02:39]} 8. Ne5 {[%clk 0:02:59]}  Qc8 {[%clk 0:02:40]} 9. c4 {[%clk 0:02:57]}  Bd6 {[%clk 0:01:48]} 10. Bxc6+ {[%clk 0:02:20]}  bxc6 {[%clk 0:01:44]} 11. Qa4 {[%clk 0:02:20]}  Bxe5 {[%clk 0:01:32]} 12. Bxe5 {[%clk 0:02:20]}  O-O {[%clk 0:01:24]} 13. Bxf6 {[%clk 0:02:20]}  gxf6 {[%clk 0:01:25]} 14. O-O {[%clk 0:02:20]}  e5 {[%clk 0:01:16]} 15. Rac1 {[%clk 0:02:14]}  Qe6 {[%clk 0:00:59]} 16. Rfe1 {[%clk 0:02:13]}  e4 {[%clk 0:00:58]} 17. cxd5 {[%clk 0:02:13]}  cxd5 {[%clk 0:00:57]} 18. Rc6 {[%clk 0:02:13]}  Qe7 {[%clk 0:00:50]} 19. Qa6 {[%clk 0:02:13]}  Qb4 {[%clk 0:00:34]} 20. Rc3 {[%clk 0:01:53]}  Qxd4 {[%clk 0:00:32]} 21. Nb3 {[%clk 0:01:54]}  Qe5 {[%clk 0:00:31]} 22. Rc6 {[%clk 0:01:48]}  d4 {[%clk 0:00:24]} 23. Rc5 {[%clk 0:01:47]}  Qf4 {[%clk 0:00:21]} 24. Qxf6 {[%clk 0:01:43]}  d3 {[%clk 0:00:16]} 25. Rxf5 {[%clk 0:01:42]} 1-0


[Site "https://www.chess.com"]

[Event "Titled Tuesday Blitz May 30 Late 2023"]
[White "Nazari, Arad"]
[Black "Lalanne, Pablo"]
[WhiteFideId "12577324"]
[BlackFideId "112151"]
[WhiteElo "2175"]
[BlackElo "2120"]
[Result "0-1"]
[Round "02"]
[TimeControl "180+2"]
[Date "2023.05.31"]
[WhiteClock "0:00:01"]
[BlackClock "0:00:15"]

1. e4 {[%clk 0:03:00]}  c5 {[%clk 0:02:59]} 2. Nf3 {[%clk 0:03:01]}  d6 {[%clk 0:02:59]} 3. Bb5+ {[%clk 0:03:02]}  Bd7 {[%clk 0:02:59]} 4. Bxd7+ {[%clk 0:03:02]}  Qxd7 {[%clk 0:02:59]} 5. O-O {[%clk 0:03:03]}  Nf6 {[%clk 0:03:00]} 6. Re1 {[%clk 0:03:03]}  Nc6 {[%clk 0:03:00]} 7. c3 {[%clk 0:03:03]}  e6 {[%clk 0:02:59]} 8. d4 {[%clk 0:03:04]}  cxd4 {[%clk 0:03:00]} 9. cxd4 {[%clk 0:03:05]}  d5 {[%clk 0:03:00]} 10. e5 {[%clk 0:03:06]}  Ne4 {[%clk 0:03:01]} 11. a3 {[%clk 0:03:06]}  Be7 {[%clk 0:02:58]} 12. Qd3 {[%clk 0:03:07]}  O-O {[%clk 0:02:54]} 13. Nbd2 {[%clk 0:03:08]}  Nxd2 {[%clk 0:02:53]} 14. Bxd2 {[%clk 0:03:09]}  Rac8 {[%clk 0:02:43]} 15. h4 {[%clk 0:03:06]}  b5 {[%clk 0:02:21]} 16. h5 {[%clk 0:02:55]}  h6 {[%clk 0:02:16]} 17. g4 {[%clk 0:02:48]}  Rfe8 {[%clk 0:01:51]} 18. g5 {[%clk 0:02:44]}  hxg5 {[%clk 0:01:50]} 19. Nxg5 {[%clk 0:02:42]}  Bxg5 {[%clk 0:01:46]} 20. Bxg5 {[%clk 0:02:43]}  Ne7 {[%clk 0:01:41]} 21. h6 {[%clk 0:02:32]}  gxh6 {[%clk 0:01:14]} 22. Bf6 {[%clk 0:02:15]}  Nf5 {[%clk 0:01:13]} 23. Kh1 {[%clk 0:02:15]}  Kh7 {[%clk 0:01:08]} 24. Rg1 {[%clk 0:02:11]}  Rg8 {[%clk 0:01:08]} 25. Rxg8 {[%clk 0:02:04]}  Rxg8 {[%clk 0:01:07]} 26. Rc1 {[%clk 0:02:05]}  Rg6 {[%clk 0:01:01]} 27. Rc5 {[%clk 0:01:59]}  a6 {[%clk 0:01:01]} 28. Qc3 {[%clk 0:01:55]}  Qa7 {[%clk 0:00:49]} 29. b4 {[%clk 0:01:14]}  Rg4 {[%clk 0:00:39]} 30. Qf3 {[%clk 0:01:00]}  Rg6 {[%clk 0:00:34]} 31. Qf4 {[%clk 0:00:52]}  a5 {[%clk 0:00:28]} 32. Rc8 {[%clk 0:00:49]}  Rg8 {[%clk 0:00:24]} 33. Rxg8 {[%clk 0:00:12]}  Kxg8 {[%clk 0:00:25]} 34. Qc1 {[%clk 0:00:04]}  Qxd4 {[%clk 0:00:17]} 35. bxa5 {[%clk 0:00:02]}  Kh7 {[%clk 0:00:17]} 36. a6 {[%clk 0:00:01]}  Qe4+ {[%clk 0:00:17]} 37. Kg1 {[%clk 0:00:01]}  Qa4 {[%clk 0:00:15]} 0-1


[Site "https://www.chess.com"]

[Event "Titled Tuesday Blitz May 30 Late 2023"]
[White "Popilski, Gil"]
[Black "Kovacs, Klara"]
[WhiteFideId "2809060"]
[BlackFideId "733210"]
[WhiteElo "2537"]
[BlackElo "2179"]
[Result "1-0"]
[Round "02"]
[TimeControl "180+2"]
[Date "2023.05.31"]
[WhiteClock "0:00:39"]
[BlackClock "0:02:20"]

1. e4 {[%clk 0:03:00]}  e6 {[%clk 0:02:57]} 2. d4 {[%clk 0:03:00]}  d5 {[%clk 0:02:58]} 3. Nc3 {[%clk 0:02:58]}  Nc6 {[%clk 0:02:56]} 4. Nf3 {[%clk 0:02:55]}  Nf6 {[%clk 0:02:57]} 5. e5 {[%clk 0:02:55]}  Ne4 {[%clk 0:02:54]} 6. Ne2 {[%clk 0:02:49]}  Be7 {[%clk 0:02:50]} 7. Nf4 {[%clk 0:02:47]}  h5 {[%clk 0:02:49]} 8. h4 {[%clk 0:02:45]}  Bd7 {[%clk 0:02:49]} 9. c3 {[%clk 0:02:43]}  a5 {[%clk 0:02:46]} 10. Be3 {[%clk 0:02:42]}  a4 {[%clk 0:02:46]} 11. a3 {[%clk 0:02:40]}  Na5 {[%clk 0:02:45]} 12. Ng5 {[%clk 0:02:25]}  Nb3 {[%clk 0:02:41]} 13. Rb1 {[%clk 0:02:19]}  Nxg5 {[%clk 0:02:40]} 14. hxg5 {[%clk 0:02:19]}  g6 {[%clk 0:02:40]} 15. Bd3 {[%clk 0:02:10]}  Rg8 {[%clk 0:02:27]} 16. Nxg6 {[%clk 0:00:45]}  fxg6 {[%clk 0:02:25]} 17. Bxg6+ {[%clk 0:00:42]}  Rxg6 {[%clk 0:02:24]} 18. Qxh5 {[%clk 0:00:42]}  Kf7 {[%clk 0:02:24]} 19. Qh7+ {[%clk 0:00:41]}  Rg7 {[%clk 0:02:24]} 20. g6+ {[%clk 0:00:40]}  Kf8 {[%clk 0:02:21]} 21. Qh8+ {[%clk 0:00:39]}  Rg8 {[%clk 0:02:20]} 22. Bh6+ {[%clk 0:00:39]} 1-0


[Site "https://www.chess.com"]

[Event "Titled Tuesday Blitz May 30 Late 2023"]
[White "Rostomyan, Mikayel"]
[Black "Kujawski, Adam"]
[WhiteFideId "13313754"]
[BlackFideId "1100920"]
[WhiteElo "2061"]
[BlackElo "2054"]
[Result "1-0"]
[Round "02"]
[TimeControl "180+2"]
[Date "2023.05.31"]
[WhiteClock "0:00:54"]
[BlackClock "0:00:05"]

1. d4 {[%clk 0:03:00]}  Nf6 {[%clk 0:00:43]} 2. Nf3 {[%clk 0:03:01]}  c5 {[%clk 0:00:42]} 3. d5 {[%clk 0:03:01]}  e6 {[%clk 0:00:42]} 4. Nc3 {[%clk 0:03:01]}  exd5 {[%clk 0:00:42]} 5. Nxd5 {[%clk 0:03:02]}  Nxd5 {[%clk 0:00:43]} 6. Qxd5 {[%clk 0:03:01]}  Be7 {[%clk 0:00:44]} 7. e4 {[%clk 0:03:00]}  Nc6 {[%clk 0:00:44]} 8. Bd2 {[%clk 0:02:53]}  d6 {[%clk 0:00:44]} 9. h4 {[%clk 0:02:51]}  Be6 {[%clk 0:00:44]} 10. Qh5 {[%clk 0:02:51]}  d5 {[%clk 0:00:42]} 11. Ng5 {[%clk 0:02:49]}  Bxg5 {[%clk 0:00:40]} 12. Bxg5 {[%clk 0:02:45]}  Qb6 {[%clk 0:00:37]} 13. O-O-O {[%clk 0:02:40]}  d4 {[%clk 0:00:34]} 14. a3 {[%clk 0:02:34]}  c4 {[%clk 0:00:23]} 15. f4 {[%clk 0:02:27]}  c3 {[%clk 0:00:23]} 16. b3 {[%clk 0:02:00]}  Qa5 {[%clk 0:00:21]} 17. a4 {[%clk 0:01:52]}  h6 {[%clk 0:00:19]} 18. f5 {[%clk 0:01:50]}  Qb4 {[%clk 0:00:17]} 19. Rd3 {[%clk 0:01:45]}  Bxb3 {[%clk 0:00:16]} 20. cxb3 {[%clk 0:01:38]}  Qxb3 {[%clk 0:00:16]} 21. Qe2 {[%clk 0:01:36]}  hxg5 {[%clk 0:00:16]} 22. e5 {[%clk 0:01:32]}  Qa3+ {[%clk 0:00:13]} 23. Kb1 {[%clk 0:01:27]}  Nb4 {[%clk 0:00:13]} 24. Rd2 {[%clk 0:01:12]}  cxd2 {[%clk 0:00:12]} 25. Qxd2 {[%clk 0:01:12]}  Qb3+ {[%clk 0:00:12]} 26. Qb2 {[%clk 0:01:09]}  Qxb2+ {[%clk 0:00:13]} 27. Kxb2 {[%clk 0:01:10]}  Nc6 {[%clk 0:00:13]} 28. Bb5 {[%clk 0:01:08]}  Rxh4 {[%clk 0:00:12]} 29. Re1 {[%clk 0:01:06]}  a6 {[%clk 0:00:12]} 30. Bc4 {[%clk 0:01:03]}  Rf4 {[%clk 0:00:12]} 31. e6 {[%clk 0:01:03]}  fxe6 {[%clk 0:00:13]} 32. Bxe6 {[%clk 0:00:58]}  Kf8 {[%clk 0:00:13]} 33. Rh1 {[%clk 0:00:57]}  Ke7 {[%clk 0:00:12]} 34. Kb3 {[%clk 0:00:55]}  Nd8 {[%clk 0:00:11]} 35. Bd5 {[%clk 0:00:55]}  Kf6 {[%clk 0:00:10]} 36. g4 {[%clk 0:00:53]}  Rxg4 {[%clk 0:00:09]} 37. Kc4 {[%clk 0:00:53]}  Rf4 {[%clk 0:00:09]} 38. Kc5 {[%clk 0:00:54]}  Rc8+ {[%clk 0:00:09]} 39. Kd6 {[%clk 0:00:55]}  d3 {[%clk 0:00:09]} 40. Rh8 {[%clk 0:00:53]}  d2 {[%clk 0:00:09]} 41. Rf8+ {[%clk 0:00:53]}  Nf7+ {[%clk 0:00:05]} 42. Rxf7# {[%clk 0:00:54]} 1-0


[Site "https://www.chess.com"]

[Event "Titled Tuesday Blitz May 30 Late 2023"]
[White "Rose, Felix"]
[Black "Odegov, Artem"]
[WhiteFideId "5105722"]
[BlackFideId "34183644"]
[WhiteElo "2039"]
[BlackElo "2300"]
[Result "0-1"]
[Round "02"]
[TimeControl "180+2"]
[Date "2023.05.31"]
[WhiteClock "0:00:25"]
[BlackClock "0:00:13"]

1. c4 {[%clk 0:02:58]}  Nf6 {[%clk 0:02:59]} 2. g3 {[%clk 0:02:57]}  e6 {[%clk 0:02:59]} 3. Bg2 {[%clk 0:02:58]}  d5 {[%clk 0:02:59]} 4. Nf3 {[%clk 0:02:59]}  c5 {[%clk 0:02:59]} 5. cxd5 {[%clk 0:02:56]}  exd5 {[%clk 0:03:00]} 6. d4 {[%clk 0:02:56]}  Nc6 {[%clk 0:03:01]} 7. O-O {[%clk 0:02:54]}  Be7 {[%clk 0:03:01]} 8. Nc3 {[%clk 0:02:53]}  O-O {[%clk 0:03:01]} 9. Bg5 {[%clk 0:02:53]}  c4 {[%clk 0:03:00]} 10. b3 {[%clk 0:02:47]}  Qa5 {[%clk 0:02:59]} 11. Qd2 {[%clk 0:02:44]}  Bb4 {[%clk 0:02:57]} 12. Bxf6 {[%clk 0:02:42]}  gxf6 {[%clk 0:02:57]} 13. Rfc1 {[%clk 0:02:39]}  Bf5 {[%clk 0:02:56]} 14. bxc4 {[%clk 0:02:14]}  dxc4 {[%clk 0:02:53]} 15. a3 {[%clk 0:02:14]}  Bxc3 {[%clk 0:02:53]} 16. Qxc3 {[%clk 0:02:14]}  Qxc3 {[%clk 0:02:49]} 17. Rxc3 {[%clk 0:02:15]}  Na5 {[%clk 0:02:45]} 18. Nd2 {[%clk 0:02:11]}  Rac8 {[%clk 0:02:43]} 19. Rac1 {[%clk 0:02:03]}  b5 {[%clk 0:02:42]} 20. e4 {[%clk 0:01:48]}  Bg6 {[%clk 0:02:40]} 21. f4 {[%clk 0:01:40]}  h6 {[%clk 0:02:33]} 22. f5 {[%clk 0:01:38]}  Bh7 {[%clk 0:02:32]} 23. Rb1 {[%clk 0:01:29]}  a6 {[%clk 0:02:32]} 24. a4 {[%clk 0:01:27]}  bxa4 {[%clk 0:02:19]} 25. Rb4 {[%clk 0:01:22]}  Nb3 {[%clk 0:02:17]} 26. Nf3 {[%clk 0:01:08]}  a3 {[%clk 0:02:15]} 27. Ra4 {[%clk 0:01:05]}  Rfe8 {[%clk 0:02:14]} 28. Rxa3 {[%clk 0:01:02]}  a5 {[%clk 0:01:50]} 29. d5 {[%clk 0:00:58]}  Red8 {[%clk 0:01:17]} 30. Ra4 {[%clk 0:00:51]}  Kg7 {[%clk 0:00:28]} 31. Bf1 {[%clk 0:00:44]}  Rb8 {[%clk 0:00:24]} 32. Raxc4 {[%clk 0:00:37]}  Rd6 {[%clk 0:00:15]} 33. Ra4 {[%clk 0:00:31]}  Rdb6 {[%clk 0:00:14]} 34. Bc4 {[%clk 0:00:31]}  Nc5 {[%clk 0:00:14]} 35. Rxa5 {[%clk 0:00:31]}  Nxe4 {[%clk 0:00:14]} 36. Rc1 {[%clk 0:00:28]}  Rb1 {[%clk 0:00:13]} 37. Ra1 {[%clk 0:00:27]}  Rxa1 {[%clk 0:00:13]} 38. Rxa1 {[%clk 0:00:27]}  Bxf5 {[%clk 0:00:14]} 39. Nd4 {[%clk 0:00:28]}  Bg6 {[%clk 0:00:13]} 40. Nc6 {[%clk 0:00:27]}  Rb2 {[%clk 0:00:13]} 41. Ra2 {[%clk 0:00:26]}  Rb1+ {[%clk 0:00:12]} 42. Kg2 {[%clk 0:00:26]}  Nc3 {[%clk 0:00:13]} 43. Rc2 {[%clk 0:00:26]}  Bxc2 {[%clk 0:00:12]} 44. d6 {[%clk 0:00:26]}  Be4+ {[%clk 0:00:12]} 45. Kf2 {[%clk 0:00:25]}  Bxc6 {[%clk 0:00:13]} 0-1


[Site "https://www.chess.com"]

[Event "Titled Tuesday Blitz May 30 Late 2023"]
[White "ATM622"]
[Black "Kaganskiy, Gleb"]
[BlackFideId "4132025"]
[WhiteElo "2561"]
[BlackElo "2165"]
[Result "1-0"]
[Round "02"]
[TimeControl "180+2"]
[Date "2023.05.31"]
[WhiteClock "0:01:46"]
[BlackClock "0:00:05"]

1. d4 {[%clk 0:03:00]}  d5 {[%clk 0:01:22]} 2. c4 {[%clk 0:02:48]}  e6 {[%clk 0:01:22]} 3. Nf3 {[%clk 0:02:48]}  c6 {[%clk 0:01:23]} 4. Nbd2 {[%clk 0:02:48]}  f5 {[%clk 0:01:22]} 5. g3 {[%clk 0:02:48]}  Nh6 {[%clk 0:01:22]} 6. Bg2 {[%clk 0:02:48]}  Nf7 {[%clk 0:01:22]} 7. O-O {[%clk 0:02:49]}  Bd6 {[%clk 0:01:21]} 8. b3 {[%clk 0:02:49]}  Nd7 {[%clk 0:01:12]} 9. Bb2 {[%clk 0:02:49]}  g5 {[%clk 0:01:12]} 10. Ne1 {[%clk 0:02:44]}  h5 {[%clk 0:01:07]} 11. f4 {[%clk 0:02:42]}  h4 {[%clk 0:00:55]} 12. Nd3 {[%clk 0:02:36]}  hxg3 {[%clk 0:00:54]} 13. hxg3 {[%clk 0:02:37]}  gxf4 {[%clk 0:00:53]} 14. gxf4 {[%clk 0:02:36]}  Nf6 {[%clk 0:00:46]} 15. Qe1 {[%clk 0:02:22]}  Ng4 {[%clk 0:00:44]} 16. Qg3 {[%clk 0:02:22]}  Qf6 {[%clk 0:00:38]} 17. Ne5 {[%clk 0:02:17]}  Bd7 {[%clk 0:00:34]} 18. e4 {[%clk 0:02:07]}  dxe4 {[%clk 0:00:17]} 19. Nxg4 {[%clk 0:02:02]}  fxg4 {[%clk 0:00:16]} 20. Nxe4 {[%clk 0:02:03]}  Qe7 {[%clk 0:00:15]} 21. d5 {[%clk 0:01:58]}  e5 {[%clk 0:00:14]} 22. Nxd6+ {[%clk 0:01:56]}  Qxd6 {[%clk 0:00:14]} 23. fxe5 {[%clk 0:01:55]}  Qh6 {[%clk 0:00:14]} 24. e6 {[%clk 0:01:54]}  O-O-O {[%clk 0:00:13]} 25. Rxf7 {[%clk 0:01:51]}  Rdf8 {[%clk 0:00:06]} 26. exd7+ {[%clk 0:01:47]}  Kd8 {[%clk 0:00:05]} 27. Qb8# {[%clk 0:01:46]} 1-0


[Site "https://www.chess.com"]

[Event "Titled Tuesday Blitz May 30 Late 2023"]
[White "SergioMoralesG"]
[Black "Figorito, Nick"]
[BlackFideId "30923689"]
[WhiteElo "2536"]
[BlackElo "2335"]
[Result "1-0"]
[Round "02"]
[TimeControl "180+2"]
[Date "2023.05.31"]
[WhiteClock "0:01:28"]
[BlackClock "0:00:39"]

1. e4 {[%clk 0:03:00]}  e6 {[%clk 0:03:00]} 2. d3 {[%clk 0:02:58]}  d5 {[%clk 0:03:00]} 3. Qe2 {[%clk 0:02:56]}  Nc6 {[%clk 0:03:00]} 4. Nf3 {[%clk 0:02:55]}  Nf6 {[%clk 0:02:57]} 5. exd5 {[%clk 0:02:54]}  Qxd5 {[%clk 0:02:57]} 6. Nc3 {[%clk 0:02:50]}  Qd8 {[%clk 0:02:57]} 7. g3 {[%clk 0:02:45]}  Bd6 {[%clk 0:02:56]} 8. Bg2 {[%clk 0:02:45]}  O-O {[%clk 0:02:56]} 9. O-O {[%clk 0:02:43]}  e5 {[%clk 0:02:56]} 10. Bg5 {[%clk 0:02:41]}  Bg4 {[%clk 0:02:56]} 11. h3 {[%clk 0:02:37]}  Nd4 {[%clk 0:02:55]} 12. Qd1 {[%clk 0:02:27]}  Nxf3+ {[%clk 0:02:54]} 13. Bxf3 {[%clk 0:02:27]}  Bxh3 {[%clk 0:02:55]} 14. Re1 {[%clk 0:02:25]}  c6 {[%clk 0:02:34]} 15. d4 {[%clk 0:02:16]}  exd4 {[%clk 0:02:07]} 16. Qxd4 {[%clk 0:02:15]}  Be7 {[%clk 0:02:07]} 17. Qh4 {[%clk 0:02:10]}  Bf5 {[%clk 0:02:04]} 18. Rad1 {[%clk 0:02:02]}  Qc7 {[%clk 0:01:25]} 19. Bf4 {[%clk 0:01:59]}  Qb6 {[%clk 0:01:16]} 20. Rxe7 {[%clk 0:01:57]}  Qxb2 {[%clk 0:01:17]} 21. Be5 {[%clk 0:01:53]}  Rfe8 {[%clk 0:01:00]} 22. Nd5 {[%clk 0:01:36]}  Qa3 {[%clk 0:00:40]} 23. Nxf6+ {[%clk 0:01:31]}  gxf6 {[%clk 0:00:39]} 24. Qxf6 {[%clk 0:01:28]} 1-0


[Site "https://www.chess.com"]

[Event "Titled Tuesday Blitz May 30 Late 2023"]
[White "Rodriguez Santiago, Jaime"]
[Black "Tissir, Mohamed"]
[WhiteFideId "3100898"]
[BlackFideId "9000240"]
[WhiteElo "2025"]
[BlackElo "2458"]
[Result "0-1"]
[Round "02"]
[TimeControl "180+2"]
[Date "2023.05.31"]
[WhiteClock "0:01:07"]
[BlackClock "0:02:10"]

1. d4 {[%clk 0:03:00]}  Nf6 {[%clk 0:02:58]} 2. c4 {[%clk 0:03:00]}  g6 {[%clk 0:02:59]} 3. Nc3 {[%clk 0:03:00]}  Bg7 {[%clk 0:02:59]} 4. e4 {[%clk 0:03:00]}  d6 {[%clk 0:03:00]} 5. Be2 {[%clk 0:03:00]}  O-O {[%clk 0:03:00]} 6. f4 {[%clk 0:02:59]}  c5 {[%clk 0:02:57]} 7. Nf3 {[%clk 0:02:59]}  Bg4 {[%clk 0:02:49]} 8. d5 {[%clk 0:02:57]}  e6 {[%clk 0:02:46]} 9. O-O {[%clk 0:02:56]}  exd5 {[%clk 0:02:46]} 10. exd5 {[%clk 0:02:56]}  Re8 {[%clk 0:02:41]} 11. h3 {[%clk 0:02:54]}  Bxf3 {[%clk 0:02:40]} 12. Bxf3 {[%clk 0:02:55]}  Nbd7 {[%clk 0:02:35]} 13. Rb1 {[%clk 0:02:42]}  a6 {[%clk 0:02:35]} 14. a4 {[%clk 0:02:40]}  h5 {[%clk 0:02:27]} 15. b3 {[%clk 0:02:21]}  Ng4 {[%clk 0:02:18]} 16. hxg4 {[%clk 0:02:15]}  Bd4+ {[%clk 0:02:18]} 17. Rf2 {[%clk 0:02:06]}  Qh4 {[%clk 0:02:17]} 18. Rb2 {[%clk 0:01:29]}  Bxc3 {[%clk 0:02:14]} 19. g3 {[%clk 0:01:07]}  Qxg3+ {[%clk 0:02:11]} 20. Rg2 {[%clk 0:01:07]}  Re1+ {[%clk 0:02:10]} 0-1


[Site "https://www.chess.com"]

[Event "Titled Tuesday Blitz May 30 Late 2023"]
[White "Kirillov, Dmitry"]
[Black "Prieto Aranguren, Alain"]
[WhiteFideId "34180572"]
[BlackFideId "2268906"]
[WhiteElo "2161"]
[BlackElo "2209"]
[Result "1/2-1/2"]
[Round "02"]
[TimeControl "180+2"]
[Date "2023.05.31"]
[WhiteClock "0:00:14"]
[BlackClock "0:00:13"]

1. d4 {[%clk 0:03:00]}  Nf6 {[%clk 0:02:59]} 2. c4 {[%clk 0:03:00]}  g6 {[%clk 0:02:59]} 3. Nc3 {[%clk 0:02:59]}  Bg7 {[%clk 0:02:59]} 4. e4 {[%clk 0:02:59]}  d6 {[%clk 0:03:00]} 5. Be2 {[%clk 0:02:44]}  O-O {[%clk 0:02:59]} 6. Bg5 {[%clk 0:02:44]}  c5 {[%clk 0:02:58]} 7. d5 {[%clk 0:02:44]}  e6 {[%clk 0:02:57]} 8. Nf3 {[%clk 0:02:43]}  exd5 {[%clk 0:02:56]} 9. exd5 {[%clk 0:02:41]}  Qb6 {[%clk 0:02:54]} 10. Qd2 {[%clk 0:02:39]}  Bf5 {[%clk 0:02:50]} 11. O-O {[%clk 0:00:54]}  Ne4 {[%clk 0:02:48]} 12. Nxe4 {[%clk 0:00:53]}  Bxe4 {[%clk 0:02:48]} 13. b3 {[%clk 0:00:48]}  Bxa1 {[%clk 0:02:46]} 14. Rxa1 {[%clk 0:00:49]}  Nd7 {[%clk 0:02:45]} 15. Bh6 {[%clk 0:00:22]}  Rfe8 {[%clk 0:02:45]} 16. Ng5 {[%clk 0:00:23]}  Re5 {[%clk 0:02:29]} 17. Re1 {[%clk 0:00:18]}  Rae8 {[%clk 0:02:26]} 18. f4 {[%clk 0:00:15]}  R5e7 {[%clk 0:02:16]} 19. Qb2 {[%clk 0:00:15]}  f6 {[%clk 0:02:11]} 20. Ne6 {[%clk 0:00:14]}  Bf5 {[%clk 0:02:03]} 21. Bf3 {[%clk 0:00:06]}  Qb4 {[%clk 0:01:55]} 22. Re2 {[%clk 0:00:04]}  b5 {[%clk 0:01:45]} 23. g4 {[%clk 0:00:04]}  Bd3 {[%clk 0:01:38]} 24. Re3 {[%clk 0:00:04]}  bxc4 {[%clk 0:01:38]} 25. g5 {[%clk 0:00:04]}  c3 {[%clk 0:01:31]} 26. Qc1 {[%clk 0:00:03]}  Qd4 {[%clk 0:01:27]} 27. Nxd4 {[%clk 0:00:03]}  cxd4 {[%clk 0:01:25]} 28. Rxe7 {[%clk 0:00:03]}  Rxe7 {[%clk 0:01:25]} 29. gxf6 {[%clk 0:00:03]}  Nxf6 {[%clk 0:01:24]} 30. Bg5 {[%clk 0:00:04]}  Kg7 {[%clk 0:01:23]} 31. Kf2 {[%clk 0:00:04]}  Ne4+ {[%clk 0:01:17]} 32. Bxe4 {[%clk 0:00:03]}  Rxe4 {[%clk 0:01:16]} 33. Qd1 {[%clk 0:00:04]}  Bb5 {[%clk 0:00:41]} 34. f5 {[%clk 0:00:03]}  gxf5 {[%clk 0:00:35]} 35. Qh5 {[%clk 0:00:02]}  Re2+ {[%clk 0:00:23]} 36. Qxe2 {[%clk 0:00:03]}  Bxe2 {[%clk 0:00:22]} 37. Kxe2 {[%clk 0:00:04]}  Kg6 {[%clk 0:00:21]} 38. Be7 {[%clk 0:00:04]}  f4 {[%clk 0:00:16]} 39. Bxd6 {[%clk 0:00:04]}  f3+ {[%clk 0:00:17]} 40. Kxf3 {[%clk 0:00:04]}  d3 {[%clk 0:00:17]} 41. Bf4 {[%clk 0:00:04]}  Kf5 {[%clk 0:00:16]} 42. Bh6 {[%clk 0:00:03]}  Ke5 {[%clk 0:00:15]} 43. Ke3 {[%clk 0:00:03]}  d2 {[%clk 0:00:14]} 44. Ke2 {[%clk 0:00:03]}  Kxd5 {[%clk 0:00:14]} 45. Bxd2 {[%clk 0:00:04]}  cxd2 {[%clk 0:00:14]} 46. Kxd2 {[%clk 0:00:05]}  Kc5 {[%clk 0:00:14]} 47. Kc3 {[%clk 0:00:05]}  a5 {[%clk 0:00:14]} 48. a3 {[%clk 0:00:06]}  h5 {[%clk 0:00:14]} 49. b4+ {[%clk 0:00:07]}  axb4+ {[%clk 0:00:13]} 50. axb4+ {[%clk 0:00:07]}  Kd5 {[%clk 0:00:14]} 51. h4 {[%clk 0:00:07]}  Kc6 {[%clk 0:00:10]} 52. Kc4 {[%clk 0:00:08]}  Kb6 {[%clk 0:00:10]} 53. Kd4 {[%clk 0:00:08]}  Kb5 {[%clk 0:00:10]} 54. Ke5 {[%clk 0:00:09]}  Kxb4 {[%clk 0:00:11]} 55. Kf5 {[%clk 0:00:10]}  Kc5 {[%clk 0:00:12]} 56. Kg5 {[%clk 0:00:11]}  Kd6 {[%clk 0:00:12]} 57. Kxh5 {[%clk 0:00:11]}  Ke7 {[%clk 0:00:13]} 58. Kg6 {[%clk 0:00:10]}  Kf8 {[%clk 0:00:13]} 59. Kh7 {[%clk 0:00:11]}  Kf7 {[%clk 0:00:13]} 60. h5 {[%clk 0:00:12]}  Kf8 {[%clk 0:00:12]} 61. Kg6 {[%clk 0:00:09]}  Kg8 {[%clk 0:00:12]} 62. h6 {[%clk 0:00:10]}  Kh8 {[%clk 0:00:12]} 63. Kf6 {[%clk 0:00:11]}  Kh7 {[%clk 0:00:12]} 64. Kg5 {[%clk 0:00:12]}  Kh8 {[%clk 0:00:12]} 65. Kh5 {[%clk 0:00:13]}  Kg8 {[%clk 0:00:12]} 66. Kg6 {[%clk 0:00:14]}  Kh8 {[%clk 0:00:13]} 67. h7 {[%clk 0:00:14]} 1/2-1/2


[Site "https://www.chess.com"]

[Event "Titled Tuesday Blitz May 30 Late 2023"]
[White "Oglaza, Oskar"]
[Black "Uzcategui Rodriguez, Alejandro"]
[WhiteFideId "1194402"]
[BlackFideId "3903400"]
[WhiteElo "2204"]
[BlackElo "2252"]
[Result "1-0"]
[Round "02"]
[TimeControl "180+2"]
[Date "2023.05.31"]
[WhiteClock "0:01:05"]
[BlackClock "0:01:17"]

1. e4 {[%clk 0:02:59]}  e6 {[%clk 0:02:57]} 2. d4 {[%clk 0:02:58]}  d5 {[%clk 0:02:53]} 3. Nc3 {[%clk 0:02:58]}  Nf6 {[%clk 0:02:52]} 4. e5 {[%clk 0:02:58]}  Nfd7 {[%clk 0:02:52]} 5. f4 {[%clk 0:02:59]}  c5 {[%clk 0:02:53]} 6. Nf3 {[%clk 0:02:59]}  Nc6 {[%clk 0:02:52]} 7. Be3 {[%clk 0:03:00]}  a6 {[%clk 0:02:45]} 8. Qd2 {[%clk 0:02:59]}  b5 {[%clk 0:02:45]} 9. Nd1 {[%clk 0:02:58]}  cxd4 {[%clk 0:02:39]} 10. Nxd4 {[%clk 0:02:58]}  Nxd4 {[%clk 0:02:39]} 11. Bxd4 {[%clk 0:02:57]}  Bc5 {[%clk 0:02:38]} 12. Bxc5 {[%clk 0:02:53]}  Nxc5 {[%clk 0:02:39]} 13. Nf2 {[%clk 0:02:53]}  Qb6 {[%clk 0:02:36]} 14. Qd4 {[%clk 0:02:47]}  Nd7 {[%clk 0:02:35]} 15. Qxb6 {[%clk 0:02:44]}  Nxb6 {[%clk 0:02:36]} 16. g4 {[%clk 0:02:38]}  Nc4 {[%clk 0:02:33]} 17. Bxc4 {[%clk 0:02:27]}  dxc4 {[%clk 0:02:32]} 18. Ne4 {[%clk 0:02:25]}  Bd7 {[%clk 0:02:28]} 19. Nd6+ {[%clk 0:02:23]}  Ke7 {[%clk 0:02:28]} 20. Rd1 {[%clk 0:02:23]}  Bc6 {[%clk 0:02:27]} 21. Rf1 {[%clk 0:02:22]}  Rhd8 {[%clk 0:02:25]} 22. f5 {[%clk 0:02:23]}  f6 {[%clk 0:02:23]} 23. g5 {[%clk 0:02:18]}  Bd5 {[%clk 0:02:06]} 24. fxe6 {[%clk 0:02:12]}  Kxe6 {[%clk 0:02:04]} 25. Nf5 {[%clk 0:01:30]}  Kxe5 {[%clk 0:01:54]} 26. Nxg7 {[%clk 0:01:28]}  fxg5 {[%clk 0:01:47]} 27. Rf5+ {[%clk 0:01:27]}  Ke4 {[%clk 0:01:48]} 28. Kf2 {[%clk 0:01:08]}  Be6 {[%clk 0:01:22]} 29. Re1+ {[%clk 0:01:04]}  Kd4 {[%clk 0:01:17]} 30. Nxe6# {[%clk 0:01:05]} 1-0


[Site "https://www.chess.com"]